bitfinex/quotes_ETHUSD_20220103
["timestamp","ask_amount","ask_price","bid_price","bid_amount"]
[1641214590350,4.30864332,3816.9,3816.8,10.48264212]
[1641214590551,1.060329,3816.9,3816.8,10.48264212]
[1641214592706,0.405359,3816.9,3816.8,10.48264212]
[1641214592907,0.105359,3816.9,3816.8,10.48264212]
[1641214594843,1.9648423,3817.0,3816.8,10.48264212]
[1641214595243,1.9648423,3817.0,3816.9,0.00227369]
[1641214595441,1.9648423,3817.0,3816.9,5.24217369]
[1641214595646,2.2648423,3817.0,3816.9,5.24217369]
[1641214596442,1.9648423,3817.0,3816.9,5.24217369]
[1641214596650,0.654898,3817.0,3816.9,5.24217369]
[1641214596846,0.654898,3817.0,3816.9,5.62317369]
[1641214598304,0.327449,3817.0,3816.9,5.62317369]
[1641214599097,0.06110523,3817.2,3816.9,9.04071572]
[1641214599501,0.06110523,3817.2,3817.0,0.65641527]
[1641214599698,0.06110523,3817.2,3817.1,17.79151037]
[1641214599900,0.06110523,3817.2,3817.1,19.10203722]
[1641214600300,0.06110523,3817.2,3817.1,19.32490992]
[1641214600700,0.16646323,3817.2,3817.1,19.32490992]
[1641214601300,0.105358,3817.2,3817.1,19.32490992]
[1641214601502,7.6187,3819.1,3817.3,9.1]
[1641214601703,3.67995652,3818.8,3817.4,0.381]
[1641214601906,0.06110485,3817.5,3817.1,4.54460955]
[1641214602156,0.06110485,3817.5,3817.2,0.381]
[1641214602552,0.16646285,3817.5,3817.3,6.1583]
[1641214603253,0.105358,3817.5,3817.3,7.25863812]
[1641214603454,0.7601544,3817.5,3817.3,7.91344812]
[1641214604054,0.7601544,3817.5,3817.3,6.81311]
[1641214605556,0.7601544,3817.5,3817.3,6.1583]
[1641214605803,1.0601544,3817.5,3817.3,6.1583]
[1641214607405,0.01029246,3817.4,3817.3,6.1583]
[1641214610443,0.01029246,3817.4,3817.3,7.46781]
[1641214612750,1.31029246,3817.4,3817.3,7.46781]
[1641214613995,0.01029246,3817.4,3817.3,7.46781]
[1641214614395,0.01029246,3817.4,3817.3,6.1583]
[1641214616293,3.42089526,3817.6,3817.3,6.1583]
[1641214616493,3.72089526,3817.6,3817.3,6.1583]
[1641214616696,0.00113685,3817.5,3817.3,6.1583]
[1641214617144,0.105359,3817.4,3817.3,6.1583]
[1641214618549,3.41320036,3817.4,3817.3,6.1583]
[1641214618952,0.405359,3817.4,3817.3,6.1583]
[1641214619350,0.105359,3817.4,3817.3,6.1583]
[1641214620149,0.06482888,3817.4,3817.3,6.1583]
[1641214632450,0.06482888,3817.4,3817.3,6.81311]
[1641214632849,0.06482888,3817.4,3817.3,6.1583]
[1641214633252,0.07512147,3817.4,3817.3,6.1583]
[1641214636906,0.87013325,3817.5,3817.4,0.09698725]
[1641214637113,0.87013325,3817.5,3817.4,6.25518725]
[1641214637513,4.19126078,3817.5,3817.4,6.25518725]
[1641214637913,4.19126078,3817.5,3817.4,6.106791]
[1641214637914,3.84355416,3817.5,3817.4,6.106791]
[1641214638317,3.94891216,3817.5,3817.4,6.106791]
[1641214638512,7.21643382,3817.5,3817.4,6.106791]
[1641214638716,3.94891216,3817.5,3817.4,6.106791]
[1641214638914,7.24404241,3817.5,3817.4,6.106791]
[1641214639113,3.94891216,3817.5,3817.4,6.106791]
[1641214640350,7.25464772,3817.5,3817.4,6.106791]
[1641214640550,3.94891216,3817.5,3817.4,6.106791]
[1641214640749,7.22902745,3817.5,3817.4,6.106791]
[1641214641155,7.24473271,3817.5,3817.4,6.106791]
[1641214641354,3.94891216,3817.5,3817.4,6.106791]
[1641214641755,7.25437816,3817.5,3817.4,6.106791]
[1641214641955,3.94891216,3817.5,3817.4,6.106791]
[1641214646599,3.94777531,3817.5,3817.4,6.106791]
[1641214655493,3.84241731,3817.5,3817.4,6.106791]
[1641214656491,3.94777631,3817.5,3817.4,6.106791]
[1641214662860,3.64777631,3817.5,3817.4,10.637791]
[1641214663253,0.6743554,3817.5,3817.4,10.637791]
[1641214663657,0.6743554,3817.5,3817.4,6.487791]
[1641214663854,0.6743554,3817.5,3817.4,9.037791]
[1641214664054,0.105359,3817.5,3817.4,9.692481]
[1641214664659,0.105359,3817.5,3817.4,11.61782907]
[1641214665656,0.105359,3817.5,3817.4,9.06782907]
[1641214668119,0.105359,3817.5,3817.4,7.29114125]
[1641214668722,0.6546578,3817.7,3817.5,9.1]
[1641214668919,0.6546578,3817.7,3817.6,6.2093]
[1641214669546,0.7600168,3817.7,3817.6,6.2093]
[1641214669956,0.7600168,3817.7,3817.6,10.62844571]
[1641214670348,0.105359,3817.7,3817.6,10.62844571]
[1641214670547,0.105359,3817.7,3817.6,10.11257025]
[1641214671245,0.105359,3817.7,3817.6,10.49357025]
[1641214671448,6.21,3818.6,3817.9,1.96356]
[1641214671649,6.21,3818.6,3818.5,6.6008406]
[1641214671847,6.21,3818.6,3818.5,7.8399406]
[1641214672250,6.21,3818.6,3818.5,9.91604686]
[1641214672454,0.6545493,3818.8,3818.5,9.91604686]
[1641214672851,0.00795793,3818.7,3818.5,10.06470711]
[1641214673306,0.0073895,3818.6,3818.5,10.06470711]
[1641214673507,0.0073895,3818.6,3818.5,10.36470711]
[1641214673707,0.0073895,3818.6,3818.5,10.06470711]
[1641214674112,0.0073895,3818.6,3818.5,9.91604686]
[1641214675016,0.0073895,3818.6,3818.5,11.69696639]
[1641214675613,0.0073895,3818.6,3818.5,9.91604686]
[1641214676515,0.0073895,3818.6,3818.5,11.69696639]
[1641214676913,0.0073895,3818.6,3818.5,9.91604686]
[1641214677181,0.0073895,3818.6,3818.5,6.8044006]
[1641214677783,2.4573895,3818.6,3818.5,6.2081]
[1641214678383,4.96319049,3818.6,3818.5,0.9704498]
[1641214678983,2.51319049,3818.6,3818.5,0.9704498]
[1641214679386,6.00700048,3818.6,3818.5,0.9704498]
[1641214680684,6.30700048,3818.6,3818.5,0.9704498]
[1641214681108,2.81319049,3818.6,3818.5,0.9704498]
[1641214681509,2.51319049,3818.6,3818.5,0.9704498]
[1641214681708,6.08022142,3818.6,3818.5,0.9204498]
[1641214681908,2.81319049,3818.6,3818.5,0.9204498]
[1641214683214,2.51319049,3818.6,3818.5,0.9204498]
[1641214684415,0.0073895,3818.6,3818.5,0.9204498]
[1641214689407,0.0073895,3818.6,3818.5,1.32526424]
[1641214692656,0.0073895,3818.6,3818.5,5.07526424]
[1641214693259,0.0073895,3818.6,3818.5,1.32526424]
[1641214699552,0.01767882,3818.6,3818.5,1.32526424]
[1641214701955,1.15402506,3818.6,3818.5,1.32526424]
[1641214702361,1.15402506,3818.6,3818.5,0.9204498]
[1641214703641,1.14663556,3818.6,3818.5,0.9204498]
[1641214707058,3.56292573,3818.6,3818.5,1.37571018]
[1641214713710,3.86292573,3818.6,3818.5,1.37571018]
[1641214715754,3.56292573,3818.6,3818.5,1.37571018]
[1641214717260,3.57566313,3818.6,3818.4,1.32544082]
[1641214717458,4.88504353,3818.6,3818.4,1.32544082]
[1641214717659,0.00682108,3818.5,3818.4,1.32544082]
[1641214717861,0.00682108,3818.5,3818.4,1.32576232]
[1641214725266,0.01711066,3818.5,3818.4,3.92576232]
[1641214725466,0.01711066,3818.5,3818.4,1.32576232]
[1641214729114,0.01711066,3818.5,3818.4,4.82576232]
[1641214729316,0.01341066,3818.5,3818.4,4.82576232]
[1641214730366,0.01341066,3818.5,3818.4,6.60668185]
[1641214730763,0.01341066,3818.5,3818.4,3.10668185]
[1641214733518,0.01341066,3818.5,3818.4,4.80697171]
[1641214733711,0.01341066,3818.5,3818.4,1.32576232]
[1641214734715,0.01341066,3818.5,3818.4,2.69151474]
[1641214735314,0.01341066,3818.5,3818.4,4.47547852]
[1641214735916,0.01341066,3818.5,3818.4,2.69151474]
[1641214736915,0.01341066,3818.5,3818.4,1.32576232]
[1641214737561,0.01341066,3818.5,3818.4,1.67144389]
[1641214741112,0.01341066,3818.5,3818.4,3.0033788]
[1641214743724,0.01341066,3818.5,3818.4,4.06922466]
[1641214744422,0.01341066,3818.5,3818.4,3.0033788]
[1641214748405,0.01341066,3818.5,3818.4,1.67144389]
[1641214759667,0.01028958,3818.5,3818.4,1.67144389]
[1641214760773,0.01028958,3818.5,3818.4,3.00456269]
[1641214761571,0.01028958,3818.5,3818.4,1.67144389]
[1641214764519,0.01028958,3818.5,3818.4,2.05244389]
[1641214764917,0.01028958,3818.5,3818.4,3.8283571]
[1641214766720,0.01028958,3818.5,3818.4,2.05244389]
[1641214767466,0.01028958,3818.5,3818.4,3.8283571]
[1641214769068,0.01028958,3818.5,3818.4,2.05244389]
[1641214769866,0.01028958,3818.5,3818.4,3.83617144]
[1641214772410,0.01028958,3818.5,3818.4,2.05244389]
[1641214773817,0.01028958,3818.5,3818.4,3.83620271]
[1641214774866,0.01028958,3818.5,3818.4,2.05244389]
[1641214776666,0.01028958,3818.5,3818.4,3.83618262]
[1641214777271,0.01028958,3818.5,3818.4,2.05244389]
[1641214780813,0.01028958,3818.5,3818.4,3.83618262]
[1641214782069,0.01028958,3818.5,3818.4,2.05244389]
[1641214783667,0.01028958,3818.5,3818.4,1.67144389]
[1641214784270,0.01028958,3818.5,3818.4,3.00935288]
[1641214784468,2.52095451,3818.5,3818.4,3.00935288]
[1641214784767,2.82095451,3818.5,3818.4,3.00935288]
[1641214785267,5.92363526,3818.5,3818.4,3.00935288]
[1641214786109,2.82095451,3818.5,3818.4,3.00935288]
[1641214787814,2.82095451,3818.5,3818.4,1.67144389]
[1641214788417,2.82095451,3818.5,3818.4,3.00935288]
[1641214789316,2.82095451,3818.5,3818.4,1.67144389]
[1641214790857,0.31028958,3818.5,3818.4,1.67144389]
[1641214791057,0.01028958,3818.5,3818.4,1.67144389]
[1641214791862,0.01028958,3818.5,3818.4,5.71247943]
[1641214792063,0.01028958,3818.5,3818.4,3.05244389]
[1641214792462,0.01028958,3818.5,3818.4,11.15244389]
[1641214792762,0.01028958,3818.5,3818.4,13.52273829]
[1641214794032,0.01028958,3818.5,3818.4,16.90023318]
[1641214795436,0.01028958,3818.5,3818.4,15.90023318]
[1641214795839,0.01028958,3818.5,3818.4,17.07071864]
[1641214796040,0.01028958,3818.5,3818.4,18.07071864]
[1641214798665,0.01028958,3818.5,3818.4,5.59322375]
[1641214799365,0.01028958,3818.5,3818.4,6.20103863]
[1641214800167,0.01028958,3818.5,3818.4,5.20103863]
[1641214801016,0.31028958,3818.5,3818.4,3.83074423]
[1641214801220,0.01028958,3818.5,3818.4,2.05244389]
[1641214801419,0.31028958,3818.5,3818.4,2.05244389]
[1641214801619,0.01028958,3818.5,3818.4,2.05244389]
[1641214801823,0.31028958,3818.5,3818.4,2.05244389]
[1641214802225,0.31028958,3818.5,3818.4,1.70676232]
[1641214802625,0.31028958,3818.5,3818.4,2.36595327]
[1641214802826,0.01028958,3818.5,3818.4,2.36595327]
[1641214803425,0.01028958,3818.5,3818.4,7.24979143]
[1641214804669,0.01028958,3818.5,3818.4,5.91595327]
[1641214806271,0.01341066,3818.5,3818.4,5.91595327]
[1641214806474,0.0113294,3818.5,3818.4,5.91595327]
[1641214806672,0.0113294,3818.5,3818.4,2.36595327]
[1641214807277,0.0113294,3818.5,3818.4,6.56595327]
[1641214808078,0.0113294,3818.5,3818.4,2.36595327]
[1641214808914,0.0113294,3818.5,3818.4,5.93934824]
[1641214809513,0.0113294,3818.5,3818.4,5.96837726]
[1641214810113,0.0113294,3818.5,3818.4,2.39498229]
[1641214810320,0.0113294,3818.5,3818.4,9.98090624]
[1641214810720,0.0113294,3818.5,3818.4,6.64498229]
[1641214810921,0.0113294,3818.5,3818.4,10.00345278]
[1641214812071,0.0113294,3818.5,3818.4,5.75345278]
[1641214812277,6.21,3819.6,3818.9,1.1943247]
[1641214812474,6.21,3819.6,3819.5,9.708]
[1641214812673,6.21,3819.6,3819.5,13.74903554]
[1641214812875,6.21,3819.6,3819.5,10.089]
[1641214813076,6.21,3819.6,3819.5,20.2373]
[1641214813273,6.21,3819.6,3819.5,20.3002397]
[1641214813473,6.21,3819.6,3819.5,21.3002397]
[1641214813673,6.21,3819.6,3819.5,21.95943065]
[1641214814376,6.21,3819.6,3819.5,21.61377065]
[1641214814775,6.21,3819.6,3819.5,18.29870445]
[1641214815075,4.3604225,3819.6,3819.5,19.29870445]
[1641214816315,6.21,3819.6,3819.5,19.29870445]
[1641214817618,6.21,3819.6,3819.5,18.29870445]
[1641214818217,6.21,3819.6,3819.5,21.86603166]
[1641214819682,6.21,3819.6,3819.5,22.86603166]
[1641214820278,0.105359,3819.8,3819.5,22.86603166]
[1641214820480,0.105359,3819.8,3819.7,3.50269126]
[1641214820684,0.105359,3819.8,3819.7,13.03159126]
[1641214820881,0.105359,3819.8,3819.7,14.06062028]
[1641214821480,0.105359,3819.8,3819.7,19.89287526]
[1641214821781,0.105359,3819.8,3819.7,18.28697048]
[1641214821981,0.055359,3819.8,3819.7,14.71981123]
[1641214822187,0.055359,3819.8,3819.7,14.53928812]
[1641214822985,0.055359,3819.8,3819.7,19.73394208]
[1641214823421,0.055359,3819.8,3819.7,16.16678283]
[1641214823822,0.055359,3819.8,3819.7,19.73394208]
[1641214825219,0.055359,3819.8,3819.7,19.99544208]
[1641214826928,0.06564504,3819.8,3819.7,19.99544208]
[1641214827178,0.06564504,3819.8,3819.7,16.42828283]
[1641214827976,0.1281493,3819.8,3819.7,16.42828283]
[1641214829379,0.1281493,3819.8,3819.7,21.18628283]
[1641214831124,0.06178386,3819.9,3819.7,22.49461283]
[1641214831323,0.38718869,3820.4,3819.8,18.52724949]
[1641214831522,0.68718869,3820.4,3820.0,1.30825]
[1641214831723,0.01023162,3820.3,3820.2,9.11451451]
[1641214831921,0.01023162,3820.3,3820.2,21.99619118]
[1641214832525,0.01023162,3820.3,3820.2,18.64271451]
[1641214832724,0.01023162,3820.3,3820.2,20.63945398]
[1641214832926,0.01023162,3820.3,3820.2,22.24535876]
[1641214833526,0.06023502,3820.3,3820.2,22.24535876]
[1641214834329,0.71616808,3820.4,3820.2,22.24535876]
[1641214835271,0.71616808,3820.4,3820.3,8.9615]
[1641214835470,0.71616808,3820.4,3820.3,18.4896]
[1641214836472,0.71616808,3820.4,3820.3,23.2476]
[1641214836672,0.71616808,3820.4,3820.3,25.51269573]
[1641214836872,0.71616808,3820.4,3820.3,16.81269573]
[1641214837073,0.71616808,3820.4,3820.3,16.84172475]
[1641214837877,0.71616808,3820.4,3820.3,20.40845465]
[1641214838194,0.41616808,3820.4,3820.3,21.40845465]
[1641214838629,0.06130306,3820.6,3820.4,8.7]
[1641214838829,0.06130306,3820.6,3820.5,20.01036642]
[1641214839237,2.62979402,3821.7,3820.6,0.06130306]
[1641214839437,0.0571,3821.7,3820.7,9.5275]
[1641214839641,0.0613026,3820.9,3820.8,14.758]
[1641214839837,0.0613026,3820.9,3820.8,11.40201011]
[1641214840036,0.06471314,3820.9,3820.8,21.85655011]
[1641214840241,0.06471314,3820.9,3820.8,19.30655011]
[1641214841039,1.98752959,3821.6,3820.9,9.1]
[1641214841242,1.136999,3821.8,3821.3,0.65397]
[1641214841446,0.00341055,3821.5,3821.4,12.93678679]
[1641214841638,0.00341055,3821.5,3821.4,13.93678679]
[1641214842276,0.105359,3821.8,3821.5,9.38828337]
[1641214842471,0.105359,3821.8,3821.6,10.18022]
[1641214842673,0.00113684,3821.7,3821.6,11.18022]
[1641214843072,0.00113684,3821.7,3821.6,10.18022]
[1641214844674,0.04113956,3821.7,3821.6,10.18022]
[1641214845374,0.04113956,3821.7,3821.6,10.44172]
[1641214846921,0.04113956,3821.7,3821.6,10.44577149]
[1641214847625,0.04113956,3821.7,3821.6,10.47480051]
[1641214849993,2.03643417,3821.7,3821.6,10.47480051]
[1641214850193,2.03643417,3821.7,3821.6,9.43988051]
[1641214850391,2.33643417,3821.7,3821.6,9.43988051]
[1641214850794,2.33643417,3821.7,3821.6,13.08057295]
[1641214850996,2.33643417,3821.7,3821.6,9.82088051]
[1641214851492,0.34113956,3821.7,3821.6,9.82088051]
[1641214851899,0.04113956,3821.7,3821.6,9.82088051]
[1641214854631,0.04113956,3821.7,3821.6,15.70198051]
[1641214854833,0.04113956,3821.7,3821.6,20.45998051]
[1641214855632,0.04113956,3821.7,3821.6,25.63261519]
[1641214856840,0.04113956,3821.7,3821.6,22.06588529]
[1641214857272,0.00113684,3821.7,3821.6,22.06588529]
[1641214857471,6.06350244,3822.3,3822.1,0.65385]
[1641214857670,6.06350244,3822.3,3822.2,14.3755]
[1641214857872,6.06350244,3822.3,3822.2,14.637]
[1641214858070,6.06350244,3822.3,3822.2,14.66602902]
[1641214858271,6.06350244,3822.3,3822.2,15.77024611]
[1641214858471,6.06350244,3822.3,3822.2,10.92024611]
[1641214858872,6.06350244,3822.3,3822.2,13.48718203]
[1641214859073,6.36350244,3822.3,3822.2,13.48718203]
[1641214859672,6.06350244,3822.3,3822.2,13.48718203]
[1641214859875,6.06350244,3822.3,3822.2,15.18040098]
[1641214860273,6.06350244,3822.3,3822.2,11.88127725]
[1641214860675,6.06350244,3822.3,3822.2,13.48718203]
[1641214861131,6.06350244,3822.3,3822.2,11.88127725]
[1641214861332,0.105358,3822.4,3822.2,11.88127725]
[1641214861734,0.13736018,3822.4,3822.2,11.88127725]
[1641214862538,0.13736018,3822.4,3822.3,2.74363122]
[1641214862835,0.14133915,3822.4,3822.3,11.88803122]
[1641214863037,0.14133915,3822.4,3822.3,12.14953122]
[1641214863242,0.14133915,3822.4,3822.3,10.36693114]
[1641214863438,0.14133915,3822.4,3822.3,10.39596016]
[1641214865068,2.11267695,3822.4,3822.3,10.39596016]
[1641214865669,0.14133915,3822.4,3822.3,10.39596016]
[1641214865871,0.14133915,3822.4,3822.3,12.17856024]
[1641214866671,0.14133915,3822.4,3822.3,10.39596016]
[1641214867673,0.14133915,3822.4,3822.3,12.1785044]
[1641214868919,0.03598115,3822.4,3822.3,12.1785044]
[1641214869931,0.03598115,3822.4,3822.3,12.5595044]
[1641214872079,0.03598115,3822.4,3822.3,10.77696016]
[1641214872889,0.03598115,3822.4,3822.3,12.109312]
[1641214873088,0.03598115,3822.4,3822.3,11.14828086]
[1641214873588,0.04626017,3822.4,3822.3,11.14828086]
[1641214873890,0.04626017,3822.4,3822.3,12.10656905]
[1641214877632,0.04626017,3822.4,3822.3,10.77421721]
[1641214879231,0.04626017,3822.4,3822.3,12.10658243]
[1641214880672,0.04626017,3822.4,3822.3,10.77421721]
[1641214881874,0.04626017,3822.4,3822.3,12.10655515]
[1641214883532,0.04626017,3822.4,3822.3,10.77421721]
[1641214884332,0.04626017,3822.4,3822.3,17.37421721]
[1641214884537,0.06082392,3822.6,3822.4,9.1]
[1641214884733,0.06082392,3822.6,3822.5,19.27887]
[1641214884931,0.06082392,3822.6,3822.5,19.54037]
[1641214885133,0.06196076,3822.6,3822.5,19.56939902]
[1641214885333,0.00113684,3822.6,3822.5,19.56939902]
[1641214886538,0.00113684,3822.6,3822.5,22.35669184]
[1641214888198,0.0611648,3823.0,3822.7,0.6537056]
[1641214888493,0.0611648,3823.0,3822.8,12.79321]
[1641214888494,0.00170527,3822.9,3822.8,12.79321]
[1641214888891,0.00170527,3822.9,3822.8,13.05471]
[1641214889293,0.00170527,3822.9,3822.8,14.01708056]
[1641214889598,0.00170527,3822.9,3822.8,15.13948142]
[1641214890193,0.00170527,3822.9,3822.8,16.97467695]
[1641214890393,0.00170527,3822.9,3822.8,17.00370597]
[1641214891643,0.00170527,3822.9,3822.8,17.30370597]
[1641214892847,6.21,3823.1,3822.9,8.65]
[1641214893047,6.21,3823.1,3823.0,21.49495127]
[1641214893248,6.21,3823.1,3823.0,21.75645127]
[1641214893454,6.21113685,3823.1,3823.0,22.71882183]
[1641214894049,6.21113685,3823.1,3823.0,24.55401736]
[1641214894447,6.13033685,3823.1,3823.0,24.55401736]
[1641214895079,6.13033685,3823.1,3823.0,13.23716609]
[1641214895283,0.00113685,3823.1,3823.0,13.23716609]
[1641214895679,0.00113685,3823.1,3823.0,13.26619511]
[1641214896488,0.00113685,3823.1,3823.0,11.43099958]
[1641214896787,0.00113685,3823.1,3823.0,10.39629958]
[1641214898188,2.0132542,3823.1,3823.0,10.39629958]
[1641214901049,2.02532621,3823.1,3823.0,10.39629958]
[1641214906329,2.6159135,3823.5,3823.0,10.39629958]
[1641214906330,2.53101364,3823.8,3823.5,0.60042486]
[1641214906543,9.18357354,3824.2,3823.4,0.98041676]
[1641214906733,6.46860342,3824.3,3823.6,9.481]
[1641214906734,3.50690342,3824.3,3823.6,9.481]
[1641214906931,3.50690342,3824.3,3824.1,4.98376386]
[1641214907142,3.50690342,3824.3,3824.2,7.92399572]
[1641214907339,4.48951342,3824.3,3824.2,10.94020341]
[1641214907539,4.4963345,3824.3,3824.2,14.93433]
[1641214907737,4.4963345,3824.3,3824.2,15.96371]
[1641214908338,0.00682108,3824.3,3824.2,15.96371]
[1641214908540,0.00682108,3824.3,3824.2,16.98533937]
[1641214908939,0.00682108,3824.3,3824.2,15.96371]
[1641214909341,0.00682108,3824.3,3824.2,15.31018]
[1641214909599,0.03738859,3824.3,3824.2,15.31018]
[1641214909998,0.33738859,3824.3,3824.2,15.31018]
[1641214910399,0.03738859,3824.3,3824.2,10.55218]
[1641214910799,0.33738859,3824.3,3824.2,10.55218]
[1641214910999,0.03738859,3824.3,3824.2,10.81368]
[1641214911401,0.33738859,3824.3,3824.2,10.81368]
[1641214911599,0.03738859,3824.3,3824.2,10.81368]
[1641214912205,0.03738859,3824.3,3824.2,10.84270902]
[1641214917403,0.03738859,3824.3,3824.2,10.46170902]
[1641214918008,0.03738859,3824.3,3824.2,10.84270902]
[1641214919610,0.14274759,3824.3,3824.2,10.84270902]
[1641214920707,0.14274759,3824.3,3824.2,10.46170902]
[1641214921338,0.44274759,3824.3,3824.2,10.46170902]
[1641214923945,0.14274759,3824.3,3824.2,10.46170902]
[1641214925492,0.44274759,3824.3,3824.2,10.46170902]
[1641214929039,0.44274759,3824.3,3824.2,13.431156]
[1641214929540,0.44274759,3824.3,3824.2,10.46170902]
[1641214929941,0.33738859,3824.3,3824.2,10.46170902]
[1641214930141,0.33738859,3824.3,3824.2,14.76735429]
[1641214930343,0.33738859,3824.3,3824.2,18.13977104]
[1641214931141,0.44274759,3824.3,3824.2,18.13977104]
[1641214931451,0.44274759,3824.3,3824.2,13.43111955]
[1641214931641,1.44274759,3824.3,3824.2,13.43111955]
[1641214931844,0.44274759,3824.3,3824.2,13.43111955]
[1641214932890,0.44274759,3824.3,3824.2,14.76735429]
[1641214936536,13.64274759,3824.3,3824.2,12.73375279]
[1641214936741,13.64274759,3824.3,3824.2,4.33467429]
[1641214936742,30.35357958,3824.3,3824.2,4.33467429]
[1641214936934,30.35357958,3824.3,3824.2,2.59352682]
[1641214937140,6.9,3824.2,3823.5,1.33623474]
[1641214937343,7.86213521,3823.6,3823.5,1.33623474]
[1641214937548,7.86213521,3823.6,3823.5,6.56693474]
[1641214937549,29.48583736,3823.6,3823.5,6.56693474]
[1641214937741,30.82374328,3823.6,3823.5,1.33392474]
[1641214937942,8.1,3823.5,3823.0,1.32822734]
[1641214938142,6.55,3823.2,3823.0,1.32620734]
[1641214938341,18.97173157,3823.1,3823.0,1.32620734]
[1641214938539,19.97173157,3823.1,3823.0,1.32620734]
[1641214938740,20.27173157,3823.1,3823.0,1.32620734]
[1641214939143,20.27173157,3823.1,3822.7,1.78164632]
[1641214939344,1.2731759,3822.9,3822.7,1.78164632]
[1641214939624,3.55521677,3822.8,3822.0,1.78164632]
[1641214939821,3.85521677,3822.8,3822.0,1.78164632]
[1641214940022,3.85521677,3822.8,3822.1,5.23798423]
[1641214940229,0.65414,3822.5,3822.1,5.23798423]
[1641214940423,3.59337813,3822.5,3822.2,0.00511581]
[1641214940627,0.3,3822.4,3822.3,5.2325]
[1641214940923,3.22956731,3822.4,3822.3,5.2325]
[1641214942325,0.3,3822.4,3822.3,5.2325]
[1641214943224,1.25402,3822.7,3822.3,5.2325]
[1641214943637,1.20402,3822.7,3822.4,0.00397896]
[1641214943838,1.85807,3822.7,3822.5,5.2322]
[1641214944243,0.65402,3822.7,3822.5,3.92704212]
[1641214944448,6.86730076,3822.6,3822.5,3.27304212]
[1641214944649,18.54730076,3822.6,3822.5,3.27304212]
[1641214944845,15.31058198,3822.6,3822.5,3.27304212]
[1641214945646,16.9496378,3822.6,3822.5,3.27304212]
[1641214946448,17.6037978,3822.6,3822.5,3.27304212]
[1641214947691,5.1237978,3822.6,3822.5,3.27304212]
[1641214947894,8.43191322,3822.6,3822.5,3.27304212]
[1641214948490,5.63191322,3822.6,3822.5,3.27304212]
[1641214952241,0.03058198,3822.6,3822.5,3.27304212]
[1641214953543,2.96486101,3822.6,3822.5,3.27304212]
[1641214953741,0.03058198,3822.6,3822.5,3.27304212]
[1641214953942,2.97766917,3822.6,3822.5,3.27304212]
[1641214955740,3.97766917,3822.6,3822.5,3.27304212]
[1641214957836,3.97766917,3822.6,3822.5,6.6460982]
[1641214957837,4.89134333,3822.6,3822.5,6.6460982]
[1641214958036,1.94425614,3822.6,3822.5,6.6460982]
[1641214958241,4.89730802,3822.6,3822.5,6.6460982]
[1641214958435,3.89730802,3822.6,3822.5,6.6460982]
[1641214958640,4.89730802,3822.6,3822.5,6.6460982]
[1641214959639,4.88388356,3822.6,3822.5,6.6460982]
[1641214960239,1.94425614,3822.6,3822.5,4.60988047]
[1641214960439,1.03058198,3822.6,3822.5,4.60988047]
[1641214960640,2.97604867,3822.6,3822.5,4.60988047]
[1641214960848,0.03058198,3822.6,3822.5,4.60988047]
[1641214961042,0.03058198,3822.6,3822.5,6.64606884]
[1641214961241,0.94460297,3822.6,3822.5,6.64606884]
[1641214961842,0.94460297,3822.6,3822.5,5.30923049]
[1641214962121,0.63058198,3822.6,3822.5,5.30923049]
[1641214962524,0.33058198,3822.6,3822.5,5.30923049]
[1641214962825,0.94460297,3822.6,3822.5,6.64602731]
[1641214963025,1.24460297,3822.6,3822.5,6.64602731]
[1641214963224,0.33058198,3822.6,3822.5,6.64602731]
[1641214963529,0.03058198,3822.6,3822.5,6.64602731]
[1641214963724,0.33058198,3822.6,3822.5,6.64602731]
[1641214964123,4.89460297,3822.6,3822.5,6.64602731]
[1641214964328,0.94460297,3822.6,3822.5,6.64602731]
[1641214964523,1.24460297,3822.6,3822.5,6.64602731]
[1641214966144,0.33058198,3822.6,3822.5,6.64602731]
[1641214966341,0.03058198,3822.6,3822.5,6.64602731]
[1641214966547,0.33058198,3822.6,3822.5,5.30923049]
[1641214966938,0.03058198,3822.6,3822.5,5.30923049]
[1641214967144,0.33058198,3822.6,3822.5,5.30923049]
[1641214967543,0.03058198,3822.6,3822.5,5.30923049]
[1641214967744,0.33058198,3822.6,3822.5,5.30923049]
[1641214968343,0.03058198,3822.6,3822.5,5.30923049]
[1641214968544,0.33058198,3822.6,3822.5,5.30923049]
[1641214968943,0.03058198,3822.6,3822.5,5.30923049]
[1641214969145,0.33058198,3822.6,3822.5,5.30923049]
[1641214969590,0.03058198,3822.6,3822.5,5.30923049]
[1641214969791,0.33058198,3822.6,3822.5,5.30923049]
[1641214970192,0.03058198,3822.6,3822.5,5.30923049]
[1641214970392,0.33058198,3822.6,3822.5,5.30923049]
[1641214970793,0.03058198,3822.6,3822.5,5.30923049]
[1641214970992,0.33058198,3822.6,3822.5,5.30923049]
[1641214971403,0.03058198,3822.6,3822.5,5.30923049]
[1641214971602,0.33058198,3822.6,3822.5,5.30923049]
[1641214972398,0.03058198,3822.6,3822.5,5.30923049]
[1641214972599,0.33058198,3822.6,3822.5,5.30923049]
[1641214973455,0.03058198,3822.6,3822.5,5.30923049]
[1641214973755,0.33058198,3822.6,3822.5,5.30923049]
[1641214973959,0.03058198,3822.6,3822.5,5.30923049]
[1641214974354,8.198e-05,3822.6,3822.5,5.30923049]
[1641214974555,3.8817,3823.9,3822.5,5.30923049]
[1641214974955,0.00682108,3823.8,3822.5,5.30923049]
[1641214975354,0.00625266,3823.7,3822.5,5.30923049]
[1641214975554,0.00625266,3823.7,3822.8,1.41411325]
[1641214975755,0.00568424,3823.6,3822.8,1.41411325]
[1641214975955,0.00568424,3823.6,3823.1,0.6538775]
[1641214976156,0.00511581,3823.5,3823.1,0.6538775]
[1641214976561,0.00454739,3823.4,3823.1,0.6538775]
[1641214976761,0.00454739,3823.4,3822.8,1.41411325]
[1641214976962,0.00397897,3823.3,3822.6,3.37298519]
[1641214977205,0.00397897,3823.3,3823.2,2.03618837]
[1641214977402,1.55257284,3823.8,3823.2,2.03618837]
[1641214977603,1.55257284,3823.8,3822.9,0.6539346]
[1641214977803,0.00625266,3823.7,3822.5,4.58078212]
[1641214978001,0.00625266,3823.7,3822.5,3.27304212]
[1641214978202,0.00568424,3823.6,3822.5,4.69618708]
[1641214978403,0.00568424,3823.6,3822.6,2.02399047]
[1641214978601,0.00511581,3823.5,3822.6,2.02399047]
[1641214979003,0.00454739,3823.4,3822.6,2.02399047]
[1641214979405,0.00397897,3823.3,3823.0,0.6539412]
[1641214979802,1.0,3823.7,3823.0,0.6539412]
[1641214979803,0.00341054,3823.2,3823.0,0.6539412]
[1641214980214,0.00284212,3823.1,3823.0,0.6539412]
[1641214980408,0.00284212,3823.1,3822.7,1.3078591]
[1641214980861,0.0022737,3823.0,3822.9,0.6539751]
[1641214981058,0.0022737,3823.0,3822.9,2.43562142]
[1641214981863,0.0022737,3823.0,3822.9,0.6539751]